Cogmind - Beta 11 X6 *** ADVENTURER MODE // 2021.08.05 @ 19:41:37 Player: Sardaukar Result: Destroyed by H-55 Commando with Gauss Rifle Performance ------------- Evolutions (2) 1000 Regions Visited (3) 600 Robots Destroyed (43) 215 Value Destroyed (1188) 1188 Prototype IDs (0) 0 Alien Tech Used (0) 0 Bonus (0) 0 TOTAL SCORE: 3003 Bonus ------- None Cogmind --------- Core Integrity 0/550 Matter 0/300 Energy 98/100 System Corruption 0% Temperature Cool (0) Movement Core (50) Location -8/Materials Parts ------- > --- POWER (1) -------- (None) > --- PROPULSION (4) --- (None) > --- UTILITY (4) ------ (None) > --- WEAPON (2) ------- (None) > --- INVENTORY (5) ---- Large Storage Unit EM Pulse Gun Heavy EM Pulse Gun Flak Cannon Peak State ------------ > --- POWER ------------ Ion Engine > --- PROPULSION ------- Aluminum Leg Aluminum Leg Improved Aluminum Leg > --- UTILITY ---------- Large Storage Unit Sensor Array Hardened Medium Armor Plating > --- WEAPON ----------- Heavy Assault Rifle Rocket Launcher > --- INVENTORY -------- EM Pulse Gun Heavy EM Pulse Gun Light Assault Rifle [Rating: 14] Favorites ----------- Power Ion Engine Engine Ion Engine Propulsion Aluminum Leg Leg Aluminum Leg Utility Sensor Array Device Sensor Array Storage Large Storage Unit Processor Targeting Computer Protection Light Armor Plating Weapon Light Cannon Energy Gun Medium Laser Ballistic Gun Assault Rifle Ballistic Cannon Light Cannon Launcher Rocket Launcher Special Melee Weapon Improved Datajack Build | -11 -10 -9 -8 ------- Run | Scr Mat Mat Mat Slots Evolved 4 | . . 2 2 Power . | . . . . Propulsion 2 | . . 1 1 Utility 2 | . . 1 1 Weapon . | . . . . Parts Attached 32 | 5 5 16 6 Power 2 | 1 . 1 . Engine 2 | 1 . 1 . Core . | . . . . Reactor . | . . . . Propulsion 12 | 2 1 8 1 Treads . | . . . . Leg 12 | 2 1 8 1 Wheel . | . . . . Hover . | . . . . Flight . | . . . . Utility 7 | . 3 3 1 Device 2 | . 1 1 . Storage 1 | . 1 . . Processor 1 | . 1 . . Hackware . | . . . . Protection 3 | . . 2 1 Artifact . | . . . . Weapon 11 | 2 1 4 4 Energy Gun 1 | 1 . . . Energy Cannon . | . . . . Ballistic Gun 5 | 1 . 3 1 Ballistic Cannon 2 | . 1 . 1 Launcher 2 | . . 1 1 Special Weapon . | . . . . Impact Weapon . | . . . . Slashing Weapon . | . . . . Piercing Weapon . | . . . . Special Melee Weapon 1 | . . . 1 Unidentified Prototypes . | . . . . Parts Lost 22 | . . 9 13 Power 2 | . . 1 1 Propulsion 8 | . . 4 4 Utility 4 | . . 1 3 Weapon 8 | . . 3 5 Highest Loss Streak 8 | . . 5 8 Average Slot Usage (%) 86 | . 97 90 63 Engine 9 | . 14 9 5 Leg 29 | . 28 31 22 Device 10 | . 13 11 7 Storage 9 | . 3 11 8 Processor 1 | . 9 . . Protection 4 | . . 5 5 Ballistic Gun 10 | . 14 10 7 Ballistic Cannon 7 | . 11 9 . Launcher 2 | . . 1 7 Naked Turns 8 | . . . 8 Heaviest Build 41 | 9 31 36 41 Greatest Support 43 | 20 20 33 43 Greatest Overweight (x) 10 | . 1 10 8 Average Overweight (x) . | . . 1 . Largest Inventory Capacity 15 | 5 15 15 15 Average Capacity 13 | 5 7 15 14 Most Carried 9 | 2 5 9 4 Average Carried 5 | 1 4 6 2 Final Capacity 15 | 5 15 15 5 Final Carried 5 | 2 5 5 4 Class Distribution -------------------- 95% | Mutant 4% | Scavenger-Mutant Dominant Class ---------------- Mutant | -10/Materials Mutant | -9/Materials Mutant | -8/Materials Resources | -11 -10 -9 -8 ----------- Run | Scr Mat Mat Mat Matter Collected 810 | 219 92 460 39 Remotely . | . . . . Salvage Created 973 | . 111 759 103 Parts 79 | . 15 55 9 Haulers Intercepted . | . . . . Recyclers Shooed 1 | . . 1 . Parts Field Recycled . | . . . . Retrieved Matter . | . . . . Parts Self-Destructed . | . . . . Prevented . | . . . . Kills | -11 -10 -9 -8 ------- Run | Scr Mat Mat Mat Combat Hostiles Destroyed 38 | . 6 27 5 Guns 8 | . 1 6 1 Cannons 20 | . 5 15 . AOE 10 | . . 6 4 Classes Destroyed 8 | . 2 5 1 Worker 1 | . . 1 . Tunneler 1 | . . 1 . Watcher 3 | . . 2 1 Swarmer 13 | . 3 7 3 Grunt 16 | . 3 13 . Brawler 1 | . . 1 . Sentry 7 | . . 6 1 Hunter 1 | . . . 1 Best Kill Streak 7 | . 3 7 3 Combat Bots Only 7 | . 3 7 3 Max Kills in Single Turn 3 | . 1 2 3 Gunslinging . | . . . . Exploded 3 | . . 1 3 Melee . | . . . . Uniques/NPCs Destroyed . | . . . . Combat | -11 -10 -9 -8 -------- Run | Scr Mat Mat Mat Damage Taken 2892 | . 98 1339 1455 Core 875 | . 31 281 563 Absorbed by Shields . | . . . . Core Remaining (%) 72 | 100 87 29 . Volleys Fired 98 | . 8 76 14 Largest 2 | . 2 2 2 Hottest 56 | . 55 56 56 Shots Fired 186 | . 16 147 23 Gun 91 | . 8 71 12 Cannon 76 | . 8 66 2 Launcher 19 | . . 10 9 Special . | . . . . Kinetic 167 | . 16 137 14 Thermal . | . . . . Explosive 19 | . . 10 9 Electromagnetic . | . . . . Robot Hit Streak 25 | . 5 21 25 Robot Miss Streak 2 | . 2 2 2 Penetration Max . | . . . . Secondary Targets . | . . . . Shots Hit Robots 155 | . 11 122 22 Core Hits 77 | . 7 53 17 Critical Kills . | . . . . Critical Parts Destroyed . | . . . . Critical Strikes 4 | . . 4 . Blast 4 | . . 4 . Melee Attacks 2 | . . . 2 Impact . | . . . . Slashing . | . . . . Piercing . | . . . . Sneak Attacks . | . . . . Combat Hostiles . | . . . . Follow-up Attacks . | . . . . Damage Inflicted 2845 | 3 165 2045 632 Guns 759 | . 55 595 109 Cannons 1098 | . 110 971 17 Explosions 981 | . . 475 506 Melee . | . . . . Ramming 7 | 3 . 4 . Kinetic 1857 | . 165 1566 126 Thermal . | . . . . Explosive 981 | . . 475 506 Electromagnetic . | . . . . Impact . | . . . . Slashing . | . . . . Piercing . | . . . . Highest Corruption . | . . . . Average Corruption . | . . . . Corruption Purged . | . . . . Overload Shots . | . . . . Overflow Damage 40 | . . 40 . Projectiles 18 | . . 18 . Explosions 22 | . . 22 . Melee . | . . . . Knockbacks 9 | . . 9 . Impact . | . . . . Kinetic 9 | . . 9 . Secondary . | . . . . Self-Inflicted Damage 229 | . . 155 74 Shots 8 | . . 5 3 Rammed . | . . . . Targets Rammed 6 | 1 . 5 . Kicked 6 | 1 . 5 . Crushed . | . . . . Highest Temperature 44 | . 4 44 29 Average Temperature 16 | . 3 16 13 Received Heat Transfer 1011 | . 18 588 405 Siege Activations . | . . . . Robots Corrupted . | . . . . Combat Hostiles . | . . . . Parts Fried . | . . . . Impact Corruptions . | . . . . Robots Melted . | . . . . Combat Hostiles . | . . . . Parts Melted . | . . . . Heat Transferred . | . . . . Parts Sabotaged . | . . . . Parts Stolen . | . . . . Parts Stripped . | . . . . Power Chain Reactions . | . . . . Missiles Intercepted . | . . . . Alert | -11 -10 -9 -8 ------- Run | Scr Mat Mat Mat Peak Influence 372 | . 140 372 329 Initial 128 | . . 50 128 Average 215 | . 78 264 238 Maximum Alert Level 1 | . . 1 1 Low Security (%) 45 | 100 100 30 27 Level 1 54 | . . 69 72 Level 2 . | . . . . Level 3 . | . . . . Level 4 . | . . . . Level 5 . | . . . . High Security . | . . . . Max Security . | . . . . Squads Dispatched 5 | . 1 3 1 Investigation 3 | . 1 1 1 Extermination . | . . . . Reinforcement 2 | . . 2 . Assault . | . . . . Garrison . | . . . . Intercept . | . . . . Construction Impeded . | . . . . Haulers Reinforced . | . . . . Active Scanning Responses . | . . . . Cargo Convoy Interrupts . | . . . . Stealth | -11 -10 -9 -8 --------- Run | Scr Mat Mat Mat Distress Signals 6 | . . 5 1 Communications Jammed . | . . . . Distress Signals . | . . . . Times Spotted 57 | . 6 39 12 Peak Tracking Total 9 | . 3 9 8 Tactical Retreats 4 | . . 3 1 Traps | -11 -10 -9 -8 ------- Run | Scr Mat Mat Mat Traps Triggered 3 | . 2 1 . Indirectly . | . . . . Trap Hack Attempts . | . . . . Triggered . | . . . . Disarmed . | . . . . Reprogrammed . | . . . . Reused . | . . . . Traps Extracted . | . . . . Installed . | . . . . Triggered . | . . . . Machines | -11 -10 -9 -8 ---------- Run | Scr Mat Mat Mat Machines Disabled 3 | . . 1 2 Max in Single Turn 1 | . . 1 1 Machines Sabotaged . | . . . . Garrisons Compromised . | . . . . Overloaded Fab Kills . | . . . . Fab Network Shutdowns . | . . . . Hacking | -11 -10 -9 -8 --------- Run | Scr Mat Mat Mat Machines Accessed 5 | . 1 2 2 Terminals 5 | . 1 2 2 Fabricators . | . . . . Repair Stations . | . . . . Recycling Units . | . . . . Scanalyzers . | . . . . Garrison Access . | . . . . Total Hacks 15 | . 2 5 8 Successful 5 | . . 1 4 Failed 10 | . 2 4 4 Catastrophic 1 | . . 1 . Database Lockouts . | . . . . Manual 14 | . 2 5 7 Terminals 15 | . 2 5 8 Fabricators . | . . . . Repair Stations . | . . . . Recycling Units . | . . . . Scanalyzers . | . . . . Garrison Access . | . . . . Terminal Hacks 4 | . . 1 3 Level Access Points 1 | . . . 1 Terminal Index 1 | . . . 1 Alert Level 1 | . . . 1 Recall Investigation 1 | . . 1 . Fabricator Hacks . | . . . . Repair Station Hacks . | . . . . Recycling Unit Hacks . | . . . . Scanalyzer . | . . . . Garrison Access Hacks . | . . . . Unauthorized Hacks 1 | . . . 1 Terminals 1 | . . . 1 Botnet 1 | . . . 1 Fabricators . | . . . . Repair Stations . | . . . . Recycling Units . | . . . . Scanalyzers . | . . . . Garrison Access . | . . . . Data Cores Recovered . | . . . . Used . | . . . . Hacking Detections 5 | . 1 2 2 Full Trace Events 2 | . . 1 1 Feedback Events . | . . . . Feedback Blocked . | . . . . Robot Schematics Acquired . | . . . . Robots Built . | . . . . Matter . | . . . . Time . | . . . . Total Robot Build Rating . | . . . . Part Schematics Acquired . | . . . . Parts Built . | . . . . Matter . | . . . . Time . | . . . . Total Part Build Rating . | . . . . Parts Repaired . | . . . . Time . | . . . . Parts Recycled . | . . . . Recycled Matter . | . . . . Retrieved Matter . | . . . . Retrieved Components . | . . . . Parts Scanalyzed . | . . . . Part Schematics Acquired . | . . . . Parts Damaged . | . . . . Bothacking | -11 -10 -9 -8 ------------ Run | Scr Mat Mat Mat Used RIF Installer . | . . . . Robots Hacked 1 | . . . 1 Non-combat . | . . . . Combat 1 | . . . 1 Robot Hacks Applied 1 | . . . 1 parse_system 1 | . . . 1 Relay Couplers Released . | . . . . Robots Rewired . | . . . . Allies Hacked . | . . . . Hacks Repelled . | . . . . Allies | -11 -10 -9 -8 -------- Run | Scr Mat Mat Mat Total Allies . | . . . . Largest Group . | . . . . Highest-Rated Group . | . . . . Highest-Rated Ally . | . . . . Total Orders . | . . . . Ally Attacks . | . . . . Total Damage . | . . . . Kills . | . . . . Allies Corrupted . | . . . . Allies Melted . | . . . . Intel | -11 -10 -9 -8 ------- Run | Scr Mat Mat Mat Robot Analysis Total . | . . . . Derelict Logs Recovered . | . . . . Drone Launches . | . . . . Drone Recoveries . | . . . . Exploration | -11 -10 -9 -8 ------------- Run | Scr Mat Mat Mat Turns Passed 1671 | 61 312 1003 295 Spaces Moved 749 | 45 207 350 147 Core 52 | 4 . 28 20 Treads . | . . . . Legs 697 | 41 207 322 127 Wheels . | . . . . Hover . | . . . . Flight . | . . . . Fastest Speed 50 | 50 120 120 50 Average Speed 173 | 113 133 209 160 Slowest Speed 550 | 120 200 550 450 Overloaded Moves . | . . . . Propulsion Burnouts . | . . . . Robots Hopped . | . . . . Cave-ins Triggered . | . . . . Exploration Rate (%) 24 | 5 36 38 17 Regions Visited 3 Branch Regions . Pre-discovered Areas . | . . . . Known Exits Taken . | . . . . Unknown Exits Taken 3 | 1 1 1 . Scrap Searched . | . . . . Spaces Dug . | . . . . Terrain Destroyed 123 | . . 64 59 Melee . | . . . . Projectile . | . . . . AOE 123 | . . 64 59 Terrain Rammed . | . . . . Walls Destroyed . | . . . . Machines Disabled . | . . . . Actions | -11 -10 -9 -8 --------- Run | Scr Mat Mat Mat Total 935 | 52 227 473 183 Wait 35 | . 2 23 10 Move 746 | 44 206 349 147 Hop . | . . . . Pick Up 10 | 2 3 4 1 Fast Attach 14 | 5 4 2 3 Attach 12 | . . 9 3 Detach 3 | . 1 . 2 Swap 6 | . 1 5 . Drop 3 | . 2 . 1 Fire 98 | . 8 76 14 Melee 2 | . . . 2 Ram . | . . . . Kick 6 | 1 . 5 . Crush . | . . . . Escape Stasis . | . . . . Rewire . | . . . . Trap . | . . . . Miscellaneous . | . . . . Route ------- -11/Scrapyard -10/Materials (discovered 2 exits: *Mat / [*Min]) -9/Materials -8/Materials (discovered 3 exits: Fac x3) History --------- Turn | Location | Event 6 | -11/Scrapyard | Discovered new exit (range 16) 62 | -11/Scrapyard | Entered Materials 238 | -10/Materials | Discovered new exit (range 16) 326 | -10/Materials | Build established: Mutant 326 | -10/Materials | Discovered new exit (range 7) 374 | -10/Materials | Entered another Materials area 374 | -9/Materials | Evolved 2 slots: Propulsion x1, Utility x1 801 | -9/Materials | Lost 3 parts (1p1u1w) 1241 | -9/Materials | Core integrity fell below 50% 1262 | -9/Materials | Lost 5 parts (3n2w) 1270 | -9/Materials | Destroyed 7 combat bots 1345 | -9/Materials | Discovered new exit (range 16) 1377 | -9/Materials | Entered another Materials area 1377 | -8/Materials | Evolved 2 slots: Propulsion x1, Utility x1 1380 | -8/Materials | Identified exit to Factory 1595 | -8/Materials | Lost 3 parts (1p1n1w) 1649 | -8/Materials | Core integrity fell below 50% 1658 | -8/Materials | Core integrity fell below 20% 1672 | -8/Materials | Destroyed by H-55 Commando with Gauss Rifle Last Messages --------------- 01645_ K-01 Serf collects debris. 01646_ The unstable cave ceiling collapses. 01648_ Critical hit (Burn: +37). 01648_ Imp. Datajack destroyed. 01648_ K-01 Serf collects debris. 01649_ Critical hit (Burn: +37). 01650_ The unstable cave ceiling collapses. 01651_ Penetrated by Slug. 01651_ K-01 Serf collects debris. 01654_ Penetrated by Slug. 01655_ Critical hit (Burn: +37). 01655_ K-01 Serf collects debris. 01657_ Penetrated by Slug. 01659_ K-01 Serf collects debris. 01660_ Slug penetrates Wall. 01662_ U-05 Engineer lays Concrete. 01662_ K-01 Serf collects debris. 01663_ U-05 Engineer lays Concrete. 01664_ Acquired Flak Cannon. 01669_ Penetrated by Slug. Map ----- +----------------------------------------------------+ | ?????????????????????????????????????????????????? | | ?????????????????????????????????????????????????? | | ?????????????????????????????????????????????????? | | ?????????????????????????????????????????????????? | | ?????????????????????????????????????????????????? | | ?????????????????????????????????????????????????? | | ?????????????????????????????????????????????????? | | ?????????????????????????????????????????????????? | | ?????????????????????????????????????????????????? | | ?????????????????????????????????????????????????? | | ???????#####?????????????????????????????????????? | | ######? ??????????????????????????????????????? | | # """??????????????????????????????????????? | | # """ #??????????????????????????????????? | | """ #######????????????????????????????? | | # #/] #????????????????????????????? | | """ ?#/] #????????????????????????????? | | #??""" #/] #????????????????????????????? | | # """ # #????????????????????????????? | | # #????????????????????????????? | | ######### ! #????????????????????????????? | | # ##[ [ #?########???????????????????? | | #* ## #### ! #???????????????????? | | # """ # ** # #???????????????????? | | + """ / * # #???????????????????? | | # """ # = Yh @ *#???????????????????? | | #/ "" ## Y#### ###???????????????????? | | # ## #??###?????????????????????? | | ########+## #??????????????????????????? | | #+###??????# #??????????????????????????? | | ?????????# #??????????????????????????? | | ? ?????# """" #??????????????????????????? | | ? ????# """" ##?????????????????????????? | | ???""" #### """"" #?????????????????????????? | | ???"""" #########?????????????????? | | ?? """ +???????????? | | ## / #########?????????????????? | | % % / #?????????????????????????? | | " " // #?????????????????????????? | | ?? "R" #?????????????????????????? | | ????""" #?????????????????????????? | | ?? ####T######?????????????????????????? | | ??#### ### ###??###??????????????????????????????? | | ?????#???##??????????????????????????????????????? | | ?????????????????????????????????????????????????? | | | | | | | | | | | +----------------------------------------------------+ Best States ------------- Heat Dissipation 31 Energy Generation 10 Energy Capacity 250 Matter Stores 300 Matter Capacity 300 Sight Range 16 Robot Scan Range 14 Terrain Scan Density 10 Armor Coverage 225 Resistance: KI 20 Resistance: TH 20 Resistance: EX 20 Resistance: EM 20 Resistance: I 20 Resistance: S 20 Resistance: P 20 Evasion (%) 55 Targeting Accuracy 5 Offensive Hacking 10 Item Schematics ----------------- None Robot Schematics ------------------ None Fabricated ------------ Nothing Alien Tech Used ----------------- None Achievements -------------- None Challenges ------------ None Game ------ Seed WardroneParticleTearclaws Manual? 0 Play Time 00:17:53 Cumulative 103.5 hours Start 2021.08.02 @ 17:43:08 End 2021.08.05 @ 19:41:37 Sessions 5 Manual Loads 0 Difficulty Adventurer Special Mode None Game No. 19 Rogue 0 Adventurer 13 Explorer 6 Win Type - Total 2 Types 1/0/1/0/0/0/0/0/0 Lore% 40 Gallery% 52 Achievement% 42 Wizard Run 0 Options --------- ASCII 0 Keyboard 1 Movement Vi Keybinds 0 Fullscreen 2 Font 20/Terminus Map View 66x50 Tactical HUD 1 Map Filters NONE Filters NONE Steam 1 RUN: dbd6857d-ccdb-42fa-8402-9e6ce10eb10d